bitfinex/quotes_BTCUSD_20220205
["timestamp","ask_amount","ask_price","bid_price","bid_amount"]
[1644092347958,0.08230563,41467.0,41466.0,0.51241626]
[1644092348161,0.08230563,41467.0,41466.0,0.27303084]
[1644092348756,0.08230563,41467.0,41466.0,0.02494776]
[1644092349158,0.08230563,41467.0,41466.0,0.25360444]
[1644092349357,0.08230563,41467.0,41466.0,0.50047103]
[1644092349557,0.08230563,41467.0,41466.0,0.25360444]
[1644092349958,0.08230563,41467.0,41466.0,0.02494776]
[1644092352207,0.02572103,41472.0,41466.0,0.02494776]
[1644092352509,0.048,41475.0,41469.0,0.02494776]
[1644092352708,0.00064432,41472.0,41469.0,0.02494776]
[1644092353507,0.005924,41474.0,41469.0,0.02494776]
[1644092353708,0.08652581,41470.0,41469.0,0.02494776]
[1644092355659,0.00064435,41472.0,41469.0,0.02494776]
[1644092356060,1.05606132,41476.0,41469.0,0.02494776]
[1644092356260,0.000646,41473.0,41469.0,0.02494776]
[1644092357262,0.005924,41475.0,41469.0,0.02494776]
[1644092357462,0.07545813,41472.0,41469.0,0.02494776]
[1644092357724,0.07545813,41472.0,41469.0,0.26944088]
[1644092357919,0.005924,41471.0,41469.0,0.02494776]
[1644092358919,0.07610413,41472.0,41469.0,0.02494776]
[1644092359420,0.10115637,41472.0,41469.0,0.02494776]
[1644092359621,0.10051037,41472.0,41469.0,0.02494776]
[1644092359821,0.005924,41471.0,41469.0,0.02494776]
[1644092361223,0.005924,41471.0,41466.0,0.02494776]
[1644092361465,0.03097624,41471.0,41466.0,0.02494776]
[1644092361667,0.03097624,41471.0,41465.0,0.36540009]
[1644092362067,0.005924,41471.0,41466.0,0.02494776]
[1644092362469,0.03097624,41471.0,41466.0,0.02494776]
[1644092363068,0.02505224,41471.0,41466.0,0.02494776]
[1644092364269,0.10115626,41472.0,41466.0,0.02494776]
[1644092364470,0.10051037,41472.0,41466.0,0.02494776]
[1644092364671,0.10115626,41472.0,41466.0,0.02494776]
[1644092365510,0.005924,41471.0,41466.0,0.02494776]
[1644092365711,0.048,41470.0,41465.0,0.26540009]
[1644092366313,0.048,41470.0,41465.0,0.21540009]
[1644092366510,0.02505224,41469.0,41465.0,0.21540009]
[1644092366710,0.07305224,41469.0,41465.0,0.21540009]
[1644092367209,0.005924,41468.0,41465.0,0.21540009]
[1644092367412,0.07305224,41469.0,41465.0,0.21540009]
[1644092368412,0.02505224,41469.0,41465.0,0.21540009]
[1644092368611,0.02505224,41469.0,41465.0,0.21530882]
[1644092368815,0.33975558,41472.0,41465.0,0.21530882]
[1644092369057,0.02505224,41469.0,41465.0,0.21530882]
[1644092371560,0.02505224,41469.0,41462.0,0.02494776]
[1644092371760,0.07968011,41463.0,41462.0,0.02494776]
[1644092371961,0.07968011,41463.0,41462.0,0.36173476]
[1644092372162,0.07968011,41463.0,41462.0,0.41173476]
[1644092372361,0.07968011,41463.0,41462.0,0.51173476]
[1644092373011,0.07968011,41463.0,41462.0,0.77115042]
[1644092375113,0.02505224,41469.0,41463.0,0.05]
[1644092376115,0.02505224,41469.0,41462.0,0.28436342]
[1644092376315,0.02505224,41469.0,41465.0,0.02494776]
[1644092377963,0.02505224,41469.0,41465.0,0.01994776]
[1644092378163,0.08182398,41467.0,41465.0,0.01994776]
[1644092378364,0.08182398,41467.0,41466.0,0.29166964]
[1644092378564,0.00064588,41472.0,41466.0,0.56996145]
[1644092378766,0.00064588,41472.0,41470.0,0.01994776]
[1644092378967,0.16556132,41475.0,41470.0,0.01994776]
[1644092379172,0.74932195,41480.0,41474.0,0.01994776]
[1644092379365,0.74959898,41480.0,41478.0,0.01994776]
[1644092379565,0.27969707,41479.0,41478.0,0.01994776]
[1644092379765,0.27942004,41479.0,41478.0,0.01994776]
[1644092380222,0.08547204,41479.0,41478.0,0.01994776]
[1644092383318,0.00092286,41481.0,41479.0,0.57852004]
[1644092383519,0.00064583,41481.0,41479.0,0.57852004]
[1644092383718,0.00027703,41483.0,41479.0,0.57852004]
[1644092383962,0.00064581,41482.0,41479.0,0.24173304]
[1644092384562,0.07370113,41481.0,41479.0,0.24173304]
[1644092385562,0.07370113,41481.0,41480.0,0.2440063]
[1644092386465,0.07370113,41481.0,41480.0,0.5807933]
[1644092389015,0.00068941,41484.0,41480.0,0.5807933]
[1644092389216,0.00068941,41484.0,41483.0,0.01994776]
[1644092389420,0.00068941,41484.0,41483.0,0.26881958]
[1644092389615,0.01809786,41486.0,41483.0,0.26881958]
[1644092390016,0.01878726,41486.0,41480.0,0.27652403]
[1644092390216,0.03005224,41484.0,41480.0,0.27652403]
[1644092390415,0.0750032,41483.0,41480.0,0.27652403]
[1644092390616,0.0750032,41483.0,41479.0,0.24173304]
[1644092392667,0.07490898,41483.0,41479.0,0.24173304]
[1644092398414,0.07490898,41483.0,41479.0,0.29173304]
[1644092398615,0.07490898,41483.0,41479.0,0.34173304]
[1644092398968,0.07490898,41483.0,41481.0,0.336787]
[1644092400170,0.07490898,41483.0,41480.0,0.01994776]
[1644092400371,0.07490898,41483.0,41478.0,0.336787]
[1644092400372,0.10523811,41483.0,41478.0,0.336787]
[1644092400569,0.10523811,41483.0,41477.0,0.01994776]
[1644092400868,0.10496122,41483.0,41477.0,0.01994776]
[1644092401067,0.10523811,41483.0,41477.0,0.01994776]
[1644092401367,0.10523811,41483.0,41476.0,0.35414542]
[1644092401567,0.10523811,41483.0,41478.0,0.2910472]
[1644092401768,0.10523811,41483.0,41478.0,0.27109944]
[1644092401969,0.10496122,41483.0,41478.0,0.27109944]
[1644092402169,0.10523811,41483.0,41478.0,0.32109944]
[1644092402371,0.10523811,41483.0,41478.0,0.27109944]
[1644092403224,0.10496122,41483.0,41478.0,0.27109944]
[1644092403425,0.10523811,41483.0,41478.0,0.27109944]
[1644092404225,0.10496122,41483.0,41478.0,0.27109944]
[1644092404625,0.10523811,41483.0,41478.0,0.27109944]
[1644092405626,0.10496122,41483.0,41478.0,0.27109944]
[1644092405827,0.10523811,41483.0,41478.0,0.27109944]
[1644092406665,0.10496122,41483.0,41478.0,0.27109944]
[1644092406866,0.10523811,41483.0,41478.0,0.27109944]
[1644092407264,0.07518587,41483.0,41478.0,0.27109944]
[1644092407867,0.07490898,41483.0,41478.0,0.27109944]
[1644092408068,0.07518587,41483.0,41479.0,0.01994776]
[1644092409167,0.07490898,41483.0,41479.0,0.01994776]
[1644092409366,0.07518587,41483.0,41479.0,0.01994776]
[1644092410229,0.00027689,41483.0,41479.0,0.01994776]
[1644092410419,0.00064622,41484.0,41479.0,0.01994776]
[1644092410721,0.00064622,41484.0,41482.0,0.01994776]
[1644092411418,0.01828328,41485.0,41482.0,0.01994776]
[1644092411619,0.01828328,41485.0,41483.0,0.2991974]
[1644092411620,0.01826314,41485.0,41483.0,0.2991974]
[1644092411820,0.01826314,41485.0,41483.0,0.3991974]
[1644092412019,0.01826314,41485.0,41484.0,0.336787]
[1644092412418,0.01826314,41485.0,41484.0,0.436787]
[1644092412622,0.01800639,41485.0,41484.0,0.436787]
[1644092412822,0.01993789,41490.0,41484.0,0.436787]
[1644092412823,0.00025675,41487.0,41484.0,0.436787]
[1644092413019,0.00053364,41487.0,41486.0,0.01994776]
[1644092413219,0.00025675,41487.0,41486.0,0.01994776]
[1644092413424,0.00025675,41487.0,41486.0,0.35673476]
[1644092413622,0.00025675,41487.0,41486.0,0.70673476]
[1644092413820,0.00027689,41489.0,41486.0,0.85473476]
[1644092414084,0.0002549,41489.0,41488.0,0.336787]
[1644092414282,0.0002549,41489.0,41488.0,0.786787]
[1644092414885,0.01993789,41490.0,41488.0,0.786787]
[1644092415084,0.00027689,41491.0,41489.0,1.35673476]
[1644092415085,0.00066477,41491.0,41489.0,1.35673476]
[1644092415286,0.00066477,41491.0,41490.0,0.3]
[1644092415287,0.00094166,41491.0,41490.0,0.3]
[1644092415490,0.00066477,41491.0,41490.0,0.734787]
[1644092415783,0.00066477,41491.0,41490.0,1.20446683]
[1644092416183,0.00027689,41496.0,41490.0,1.20260683]
[1644092416384,0.00027689,41498.0,41495.0,0.01994776]
[1644092416583,0.02265859,41499.0,41495.0,0.01994776]
[1644092416785,0.02293548,41499.0,41495.0,0.01994776]
[1644092416984,0.02265859,41499.0,41495.0,0.01994776]
[1644092417384,0.02,41499.0,41495.0,0.01994776]
[1644092417817,0.02066469,41499.0,41495.0,0.01994776]
[1644092418417,0.03005224,41498.0,41495.0,0.01994776]
[1644092418617,0.03005224,41498.0,41496.0,0.20807405]
[1644092418816,0.03005224,41498.0,41496.0,0.30807405]
[1644092419316,0.03005224,41498.0,41496.0,0.40807405]
[1644092419517,0.02027689,41499.0,41496.0,0.40807405]
[1644092419718,0.02027689,41499.0,41498.0,0.01994776]
[1644092419719,0.02,41499.0,41498.0,0.01994776]
[1644092420317,0.02,41499.0,41498.0,0.7578358]
[1644092420521,0.02,41499.0,41498.0,0.8578358]
[1644092420717,0.02,41499.0,41498.0,0.9578358]
[1644092426016,0.01970986,41499.0,41498.0,0.9578358]
[1644092427719,0.01970986,41499.0,41498.0,1.21586941]
[1644092433820,0.01970986,41499.0,41498.0,0.81476837]
[1644092434921,0.01970986,41499.0,41498.0,0.94784192]
[1644092435321,0.01970986,41499.0,41498.0,0.61476837]
[1644092436321,0.01970986,41499.0,41498.0,1.08779182]
[1644092437174,0.01950171,41499.0,41498.0,1.08779182]
[1644092441018,0.01950171,41499.0,41498.0,1.18779182]
[1644092444471,0.01950171,41499.0,41498.0,1.06784406]
[1644092444672,0.01950171,41499.0,41498.0,0.96784406]
[1644092447820,0.01950171,41499.0,41498.0,1.06784406]
[1644092450824,0.01950171,41499.0,41498.0,0.69482061]
[1644092451027,0.01950171,41499.0,41498.0,0.336787]
[1644092451227,0.01950171,41499.0,41493.0,0.1]
[1644092451228,0.01950171,41499.0,41494.0,0.26693095]
[1644092451468,0.03005224,41495.0,41490.0,0.1]
[1644092451672,0.07500381,41495.0,41492.0,0.3]
[1644092451868,0.06747855,41495.0,41493.0,0.6872063]
[1644092452068,0.06747855,41495.0,41494.0,0.26318953]
[1644092452269,0.07500381,41495.0,41494.0,0.86500808]
[1644092452668,0.07500381,41495.0,41494.0,0.70181855]
[1644092453269,0.00752526,41495.0,41494.0,0.70181855]
[1644092453669,0.00723523,41495.0,41494.0,0.70181855]
[1644092455228,0.00723523,41495.0,41494.0,0.436787]
[1644092455722,0.00723523,41495.0,41494.0,0.336787]
[1644092456222,0.00723523,41495.0,41494.0,0.59239495]
[1644092457425,0.00097295,41497.0,41494.0,0.73515972]
[1644092457626,0.00069606,41497.0,41495.0,0.336787]
[1644092458024,0.00069606,41497.0,41495.0,0.64181425]
[1644092458223,0.00027689,41498.0,41495.0,0.64181425]
[1644092458423,0.00027689,41498.0,41495.0,0.69181425]
[1644092458424,0.00069604,41498.0,41495.0,0.69181425]
[1644092458624,0.00069604,41498.0,41496.0,0.336787]
[1644092458825,0.00069604,41498.0,41496.0,0.436787]
[1644092459476,0.0197786,41499.0,41496.0,0.436787]
[1644092459670,0.0201848,41499.0,41496.0,0.436787]
[1644092460072,0.0201848,41499.0,41498.0,0.04276477]
[1644092460274,0.0201848,41499.0,41498.0,0.37955177]
[1644092460472,0.0201848,41499.0,41498.0,0.42955177]
[1644092460671,0.01950171,41499.0,41498.0,0.57955177]
[1644092462827,0.01950171,41499.0,41498.0,0.52955177]
[1644092463028,0.02673694,41499.0,41498.0,0.47955177]
[1644092463230,0.02673694,41499.0,41498.0,0.336787]
[1644092463426,0.02673694,41499.0,41489.0,0.1]
[1644092463627,0.00723523,41492.0,41490.0,0.336787]
[1644092463827,0.08879162,41496.0,41490.0,0.336787]
[1644092464025,0.09602685,41496.0,41490.0,0.336787]
[1644092464427,0.00065062,41495.0,41494.0,0.57674529]
[1644092464629,0.00065062,41495.0,41494.0,0.91353229]
[1644092465427,0.06692005,41495.0,41494.0,0.336787]
[1644092465629,0.06692005,41495.0,41488.0,0.336787]
[1644092465830,0.06692005,41495.0,41488.0,0.436787]
[1644092466474,0.00751212,41496.0,41495.0,0.3800288]
[1644092466676,0.00723523,41496.0,41495.0,0.7168158]
[1644092467282,0.08861098,41496.0,41495.0,0.7168158]
[1644092467876,0.08861098,41496.0,41491.0,0.25640165]
[1644092468076,0.08861098,41496.0,41487.0,0.24276477]
[1644092468077,0.08888787,41496.0,41487.0,0.24276477]
[1644092468279,0.00723523,41488.0,41484.0,0.1]
[1644092468477,0.08165264,41496.0,41485.0,0.336787]
[1644092468677,0.08165264,41496.0,41483.0,0.04276477]
[1644092468678,0.00723523,41486.0,41483.0,0.04276477]
[1644092468877,0.048,41494.0,41484.0,0.73183008]
[1644092469076,0.07560114,41488.0,41484.0,1.00482017]
[1644092469277,0.00029919,41487.0,41484.0,1.10482017]
[1644092469677,0.00029919,41487.0,41484.0,1.15482017]
[1644092470323,0.07560114,41488.0,41484.0,1.15482017]
[1644092471323,0.07531109,41488.0,41484.0,1.15482017]
[1644092472925,0.00065185,41488.0,41484.0,1.15482017]
[1644092473826,0.00723523,41492.0,41484.0,1.15482017]
[1644092474071,0.00067204,41488.0,41484.0,1.15482017]
[1644092474272,0.08931583,41487.0,41484.0,1.15482017]
[1644092476175,0.00723523,41492.0,41484.0,1.15482017]
[1644092476577,0.00723523,41487.0,41484.0,0.336787]
[1644092476880,0.05523523,41487.0,41477.0,0.1174]
[1644092477077,0.00723523,41478.0,41472.0,0.20766836]
[1644092477277,0.00723523,41478.0,41473.0,0.336787]
[1644092477476,0.08640635,41475.0,41473.0,0.336787]
[1644092477735,0.08640635,41475.0,41474.0,0.20933507]
[1644092477922,0.08640635,41475.0,41474.0,0.54612207]
[1644092478122,0.08640635,41475.0,41474.0,0.59612207]
[1644092478325,0.08640635,41475.0,41474.0,0.64612207]
[1644092478522,0.08640635,41475.0,41474.0,0.436787]
[1644092478722,0.08640635,41475.0,41474.0,0.536787]
[1644092479222,0.00723523,41478.0,41474.0,0.536787]
[1644092479423,0.00723523,41478.0,41475.0,0.336787]
[1644092479622,0.00723523,41478.0,41475.0,0.53346777]
[1644092479823,0.423,41486.0,41475.0,0.53346777]
[1644092480023,0.00723523,41478.0,41475.0,0.53346777]
[1644092480229,0.00723523,41482.0,41475.0,0.53346777]
[1644092480426,0.00723523,41482.0,41478.0,0.336787]
[1644092480625,0.123,41486.0,41478.0,0.336787]
[1644092480626,0.123,41486.0,41478.0,0.37955177]
[1644092480823,0.123,41486.0,41483.0,0.40477521]
[1644092481024,0.00723523,41487.0,41483.0,0.40477521]
[1644092481672,0.00723523,41487.0,41484.0,0.336787]
[1644092481873,0.00723523,41487.0,41483.0,0.40477521]
[1644092483876,0.00723523,41487.0,41483.0,0.50477521]
[1644092484076,0.00723523,41491.0,41484.0,0.04276477]
[1644092484881,0.00723523,41491.0,41483.0,0.60477521]
[1644092485318,0.00723523,41491.0,41490.0,0.31575285]
[1644092485523,0.00723523,41491.0,41483.0,0.24276477]
[1644092485720,0.00723523,41491.0,41483.0,0.14276477]
[1644092486619,0.26116367,41492.0,41483.0,0.14276477]
[1644092486620,0.00723523,41487.0,41483.0,0.14276477]
[1644092486819,0.26116367,41492.0,41484.0,0.786787]
[1644092487217,0.26116367,41492.0,41484.0,0.886787]
[1644092488972,0.08238232,41493.0,41488.0,0.35134441]
[1644092489179,0.08238232,41493.0,41488.0,0.40134441]
[1644092489375,0.08238232,41493.0,41488.0,0.55134441]
[1644092490175,0.08238232,41493.0,41489.0,0.21276314]
[1644092491280,0.08238232,41493.0,41488.0,0.55134441]
[1644092491479,0.08238232,41493.0,41488.0,0.2]
[1644092491880,0.08238232,41493.0,41482.0,0.05]
[1644092492080,0.08307542,41493.0,41482.0,0.05]
[1644092492481,0.08307542,41493.0,41485.0,0.25818995]
[1644092492921,0.10212494,41493.0,41485.0,0.25818995]
[1644092493125,0.00069312,41491.0,41485.0,0.25818995]
[1644092494020,0.10212494,41493.0,41485.0,0.25818995]
[1644092494422,0.00069313,41490.0,41485.0,0.25818995]
[1644092495223,0.08238232,41493.0,41485.0,0.25818995]
[1644092495422,0.1412658,41496.0,41490.0,0.28382806]
[1644092495626,0.1412658,41496.0,41485.0,0.25818995]
[1644092495627,0.005924,41495.0,41485.0,0.25818995]
[1644092495823,0.0217658,41496.0,41485.0,0.25818995]
[1644092496471,0.20771364,41494.0,41485.0,0.25818995]
[1644092496672,0.20771364,41494.0,41488.0,0.31343796]
[1644092496872,0.2837991,41494.0,41488.0,0.31343796]
[1644092498476,0.2837991,41494.0,41482.0,0.00039692]
[1644092498675,0.30994225,41493.0,41482.0,0.00039692]
[1644092498875,0.06889218,41487.0,41476.0,0.06474634]
[1644092499075,0.06889218,41487.0,41482.0,0.00069326]
[1644092500076,0.06889218,41487.0,41481.0,0.26859193]
[1644092500322,0.06889218,41487.0,41482.0,0.00065676]
[1644092501222,0.06889218,41487.0,41481.0,0.26859193]
[1644092501423,0.06889218,41487.0,41482.0,0.00065676]
[1644092502423,0.06889218,41487.0,41481.0,0.26859193]
[1644092502622,0.06889218,41487.0,41482.0,0.00065676]
[1644092503738,0.06889218,41487.0,41481.0,0.26859193]
[1644092503970,0.06889218,41487.0,41482.0,0.00064892]
[1644092504170,0.005924,41486.0,41482.0,0.00064892]
[1644092504571,0.06889218,41487.0,41482.0,0.00064892]
[1644092504972,0.06889218,41487.0,41479.0,0.27469005]
[1644092505172,0.06889218,41487.0,41482.0,0.00064892]
[1644092506174,0.06889218,41487.0,41479.0,0.47469005]
[1644092506372,0.06889218,41487.0,41482.0,0.00064892]
[1644092507474,0.06889218,41487.0,41482.0,0.00064994]
[1644092508524,0.06889218,41487.0,41480.0,0.39119654]
[1644092508720,0.06889218,41487.0,41482.0,0.00064994]
[1644092509723,0.06889218,41487.0,41480.0,0.39119654]
[1644092510022,0.06889218,41487.0,41482.0,0.00064994]
[1644092510923,0.06889218,41487.0,41479.0,0.27469005]
[1644092511124,0.06889218,41487.0,41482.0,0.00064939]
[1644092511576,0.005924,41486.0,41482.0,0.00064939]
[1644092512177,0.06889218,41487.0,41475.0,0.67453199]
[1644092512377,0.06889218,41487.0,41482.0,0.00064939]
[1644092513278,0.06889218,41487.0,41481.0,0.22777164]
[1644092513476,0.06889218,41487.0,41482.0,0.00064939]
[1644092513780,0.06889218,41487.0,41482.0,0.39537705]
[1644092514578,0.06889218,41487.0,41482.0,0.39472766]
[1644092514776,0.06889218,41487.0,41482.0,0.00064942]
[1644092514979,0.005924,41486.0,41482.0,0.00064942]
[1644092515620,0.005924,41486.0,41479.0,0.24044967]
[1644092515819,0.06889218,41487.0,41482.0,0.00064943]
[1644092516822,0.06889218,41487.0,41479.0,0.24044967]
[1644092517022,0.06889218,41487.0,41482.0,0.00064942]
[1644092517422,0.06889218,41487.0,41482.0,0.00058879]
[1644092518025,0.06889218,41487.0,41479.0,0.24044967]
[1644092519670,0.06889218,41487.0,41477.0,0.43323981]
[1644092519871,0.06889218,41487.0,41477.0,0.48323981]
[1644092520171,0.08458547,41480.0,41478.0,0.336787]
[1644092520373,0.23493794,41488.0,41479.0,0.65]
[1644092520374,0.07900799,41482.0,41479.0,0.65]
[1644092520570,0.07900799,41482.0,41480.0,0.336787]
[1644092520770,0.07900799,41482.0,41479.0,0.25100424]
[1644092520970,0.07900799,41482.0,41480.0,0.336787]
[1644092521270,0.1198,41487.0,41480.0,0.336787]
[1644092521470,0.1198,41487.0,41479.0,0.25100424]
[1644092521872,0.1198,41487.0,41481.0,0.00069324]
[1644092522922,0.06649923,41483.0,41479.0,0.25100424]
[1644092523122,0.06649923,41483.0,41482.0,0.00069324]
[1644092524124,0.06649923,41483.0,41473.0,0.05]
[1644092524328,0.06649923,41483.0,41480.0,0.00069325]
[1644092524524,0.27770427,41481.0,41480.0,0.00069325]
[1644092524726,0.06649923,41483.0,41480.0,0.00069325]
[1644092525326,0.06649923,41483.0,41478.0,0.336787]
[1644092525627,0.06649923,41483.0,41479.0,0.00069326]
[1644092525926,0.29127385,41483.0,41479.0,0.00069326]
[1644092526125,0.06649923,41483.0,41479.0,0.00069326]
[1644092526570,0.06649923,41483.0,41479.0,0.336787]
[1644092526771,0.06649923,41483.0,41479.0,0.33748026]
[1644092527372,0.015,41482.0,41479.0,0.33748026]
[1644092527773,0.015,41482.0,41479.0,0.436787]
[1644092528373,0.015,41482.0,41479.0,0.336787]
[1644092528574,0.015,41482.0,41478.0,0.00069327]
[1644092528975,0.015,41482.0,41479.0,0.336787]
[1644092538226,0.015,41482.0,41481.0,0.33019211]
[1644092541233,0.015,41482.0,41479.0,0.00069326]
[1644092542080,0.015,41482.0,41478.0,0.05]
[1644092542280,0.015,41482.0,41479.0,0.336787]
[1644092544081,0.015,41482.0,41479.0,0.33669824]
[1644092544683,0.015,41482.0,41479.0,0.3334463]
[1644092548333,0.015,41482.0,41481.0,0.38652027]
[1644092548980,0.015,41482.0,41481.0,0.66339067]
[1644092550380,0.00069306,41491.0,41489.0,0.34926921]
[1644092550578,0.23068678,41492.0,41489.0,0.34926921]
[1644092550781,0.00029628,41491.0,41489.0,0.34926921]
[1644092551778,0.00026673,41492.0,41489.0,0.34926921]
[1644092551979,0.00095932,41492.0,41489.0,0.34926921]
[1644092553023,0.00026673,41492.0,41489.0,0.34926921]
[1644092553225,0.00026673,41492.0,41486.0,0.24015677]
[1644092553528,0.00026673,41492.0,41485.0,0.04973327]
[1644092554123,0.00026673,41492.0,41487.0,0.32717652]
[1644092554324,0.00026673,41492.0,41488.0,0.2217201]
[1644092555524,0.00095888,41492.0,41488.0,0.2217201]
[1644092555928,0.00095888,41492.0,41487.0,0.32717652]
[1644092556578,0.00026673,41492.0,41487.0,0.32717652]
[1644092556778,0.00095888,41492.0,41487.0,0.32717652]
[1644092557777,0.00026673,41492.0,41487.0,0.32717652]
[1644092557977,0.00095888,41492.0,41487.0,0.32717652]
[1644092558983,0.00026673,41492.0,41487.0,0.32717652]
[1644092559281,0.00095888,41492.0,41487.0,0.32717652]
[1644092559681,0.00095888,41492.0,41486.0,0.22551072]
[1644092560082,0.00026673,41492.0,41486.0,0.22551072]
[1644092560324,0.00069215,41491.0,41486.0,0.22551072]
[1644092560528,0.00069215,41491.0,41485.0,0.04973327]
[1644092560727,0.00026673,41488.0,41483.0,0.00069229]
[1644092560927,0.00069215,41491.0,41483.0,0.00069229]
[1644092561126,0.00026673,41484.0,41483.0,0.00069229]
[1644092561336,0.00026673,41484.0,41479.0,0.00022859]
[1644092561527,0.30223602,41486.0,41483.0,0.00069228]
[1644092561724,0.27577436,41484.0,41483.0,0.00069228]
[1644092561924,0.3532637,41484.0,41483.0,0.00069228]
[1644092562525,0.3532637,41484.0,41479.0,0.00022859]
[1644092562725,0.3439937,41484.0,41481.0,0.00069228]
[1644092562925,0.00927,41483.0,41481.0,0.00069228]
[1644092563727,0.00927,41483.0,41479.0,0.00022859]
[1644092563978,0.3439937,41484.0,41480.0,0.00069229]
[1644092563979,0.34372697,41484.0,41480.0,0.00069229]
[1644092564778,0.34372697,41484.0,41478.0,0.04405802]
[1644092564779,0.34356474,41484.0,41478.0,0.04405802]
[1644092564977,0.00594198,41483.0,41479.0,0.00023042]
[1644092565177,0.00594198,41483.0,41480.0,0.00069229]
[1644092565378,0.30571942,41483.0,41480.0,0.00069229]
[1644092565580,0.05727,41482.0,41480.0,0.00069229]
[1644092565778,0.32214285,41481.0,41480.0,0.00069229]
[1644092565978,0.33141285,41481.0,41480.0,0.00069229]
[1644092566178,0.33141285,41481.0,41479.0,0.00023042]
[1644092566179,0.33141285,41481.0,41472.0,0.00023042]
[1644092566377,0.33141285,41481.0,41468.0,0.14705802]
[1644092566378,0.32214285,41481.0,41476.0,0.25697583]
[1644092566584,0.00594198,41479.0,41476.0,0.25697583]
[1644092567578,0.32214285,41481.0,41476.0,0.25697583]
[1644092567828,0.048,41482.0,41476.0,0.25720625]
[1644092568230,0.00069215,41487.0,41477.0,0.04405802]
[1644092568425,0.00069215,41487.0,41481.0,0.04405802]
[1644092568625,0.28024738,41489.0,41487.0,0.35898685]
[1644092568626,0.00927,41488.0,41487.0,0.35898685]
[1644092569129,0.00594198,41489.0,41487.0,0.35898685]
[1644092569525,0.00927,41488.0,41487.0,0.35898685]
[1644092570124,0.009191,41488.0,41487.0,0.35898685]
[1644092570525,0.00069217,41490.0,41487.0,0.35898685]
[1644092570927,0.05594198,41493.0,41487.0,0.35898685]
[1644092571128,0.00069216,41491.0,41487.0,0.35898685]
[1644092571783,0.00663414,41491.0,41487.0,0.35898685]
[1644092572279,0.00594198,41491.0,41487.0,0.35898685]
[1644092572483,0.00663413,41491.0,41487.0,0.35898685]
[1644092573482,0.00594198,41491.0,41487.0,0.35898685]
[1644092573683,0.00663413,41491.0,41487.0,0.35898685]
[1644092574682,0.00594198,41491.0,41487.0,0.35898685]
[1644092574883,0.00663413,41491.0,41487.0,0.35898685]
[1644092575824,0.00594198,41491.0,41487.0,0.35898685]
[1644092576022,0.00663413,41491.0,41487.0,0.35898685]
[1644092577023,0.00594198,41491.0,41487.0,0.35898685]
[1644092577322,0.00663413,41491.0,41487.0,0.35898685]
[1644092578122,0.00594198,41491.0,41487.0,0.35898685]
[1644092578525,0.00663413,41491.0,41487.0,0.35898685]
[1644092579380,0.00594198,41491.0,41487.0,0.35898685]
[1644092579577,0.00663413,41491.0,41487.0,0.35898685]
[1644092580575,0.00594198,41491.0,41487.0,0.35898685]
[1644092580878,0.00663413,41491.0,41487.0,0.35898685]
[1644092581277,0.00069215,41491.0,41487.0,0.40304487]
[1644092581481,0.00069215,41491.0,41490.0,0.04405802]
[1644092581679,0.00069215,41491.0,41490.0,0.38076302]
[1644092581982,0.00027801,41497.0,41493.0,0.25491457]
[1644092582178,0.58591999,41498.0,41493.0,0.25491457]
[1644092582378,0.00027801,41497.0,41493.0,0.25491457]
[1644092582578,0.00621999,41498.0,41493.0,0.25491457]
[1644092583227,0.009198,41497.0,41493.0,0.25491457]
[1644092583426,0.00947601,41497.0,41493.0,0.25491457]
[1644092583627,0.00027801,41497.0,41490.0,0.04405802]
[1644092583826,0.0009701,41498.0,41490.0,0.04405802]
[1644092584026,0.00027801,41497.0,41490.0,0.04405802]
[1644092584225,0.00069209,41498.0,41490.0,0.04405802]
[1644092584226,0.00027801,41498.0,41490.0,0.04405802]
[1644092584426,0.00069211,41496.0,41490.0,0.04405802]
[1644092584630,0.00069211,41496.0,41490.0,0.27073485]
[1644092584828,0.00134594,41493.0,41491.0,0.336705]
[1644092586879,0.00134594,41493.0,41488.0,0.336705]
[1644092587580,0.00134594,41493.0,41489.0,0.23665815]
[1644092587979,0.00203808,41493.0,41489.0,0.23665815]
[1644092588177,0.00203808,41493.0,41490.0,0.336705]
[1644092588979,0.00134594,41493.0,41490.0,0.336705]
[1644092589584,0.00134594,41493.0,41483.0,0.2208]
[1644092589788,0.00594198,41491.0,41483.0,0.2208]
[1644092589982,0.00594198,41491.0,41483.0,0.1]
[1644092590235,0.00594198,41491.0,41483.0,0.05]
[1644092590428,0.07956975,41486.0,41483.0,0.05]
[1644092590629,0.07956975,41486.0,41482.0,0.05]
[1644092590829,0.07956975,41486.0,41481.0,0.3]
[1644092591029,0.07956975,41486.0,41481.0,0.2]
[1644092591632,0.07956975,41486.0,41482.0,0.5540299]
[1644092591830,0.07956975,41486.0,41482.0,0.336705]
[1644092592046,0.07956975,41486.0,41482.0,0.04405802]
[1644092592232,0.07956975,41486.0,41481.0,0.10023042]
[1644092592434,0.07956975,41486.0,41481.0,0.1]
[1644092593230,0.07956975,41486.0,41481.0,0.10023042]
[1644092594478,0.00594198,41485.0,41481.0,0.10023042]
[1644092595880,0.07956975,41486.0,41481.0,0.10023042]
[1644092596681,0.00594198,41485.0,41481.0,0.10023042]
[1644092597182,0.00594198,41485.0,41481.0,0.09278941]
[1644092597381,0.00594198,41485.0,41481.0,0.09255899]
[1644092598031,0.07956975,41486.0,41482.0,0.27425361]
[1644092598631,0.07956975,41486.0,41481.0,0.09255899]
[1644092599229,0.00594198,41485.0,41481.0,0.09255899]
[1644092599429,0.07956975,41486.0,41481.0,0.09255899]
[1644092599631,0.07956975,41486.0,41481.0,0.34811623]
[1644092600034,0.00594198,41485.0,41481.0,0.34811623]
[1644092600630,0.00594198,41484.0,41481.0,0.34811623]
[1644092603579,0.00069218,41487.0,41482.0,0.336705]
[1644092603778,0.00069218,41487.0,41481.0,0.39217425]
[1644092603978,0.00069218,41487.0,41482.0,0.336705]
[1644092604680,0.22618403,41488.0,41482.0,0.331705]
[1644092604878,0.0006922,41487.0,41481.0,0.39217425]
[1644092605728,0.22618403,41488.0,41481.0,0.39217425]
[1644092606125,0.00069219,41487.0,41481.0,0.39217425]
[1644092606535,0.00069219,41487.0,41482.0,0.336725]
[1644092606930,0.00594198,41491.0,41482.0,0.336725]
[1644092607131,0.00594198,41491.0,41481.0,0.39217425]
[1644092607332,0.0006922,41487.0,41481.0,0.39217425]
[1644092607533,0.0006922,41487.0,41482.0,0.336725]
[1644092608131,0.08055858,41490.0,41482.0,0.336725]
[1644092608331,0.08055858,41490.0,41481.0,0.39217425]
[1644092608533,0.0006922,41487.0,41482.0,0.336725]
[1644092609184,0.0006922,41487.0,41481.0,0.39217425]
[1644092609384,0.28889653,41490.0,41481.0,0.39217425]
[1644092609583,0.0006922,41487.0,41481.0,0.39217425]
[1644092609982,0.0006922,41487.0,41481.0,0.34811623]
[1644092610488,0.0006922,41487.0,41481.0,0.08755899]
[1644092610684,0.28889653,41490.0,41481.0,0.08755899]